{"text_format":"1","workbook":"xlsx","n_sheets":4,"sheets":["Fatura","البيان الحكومى","الاسعار والاصناف الحكومى","Bayan"],"not_rendered":{"charts":0,"images":0,"macros":1,"external_links":0,"defined_names":5,"comments":0,"pivot_tables":0},"unopened":[],"bounds":{"document_bytes":16777216,"sheet_cells":100000,"rows_first":2000,"rows_last":500,"rows_between":2000,"halvings":0,"cell_chars":16384,"cell_head_chars":4096},"cells_cut":0,"cells_raw":0,"read":"whole","date_system":"1900"}

{"sheet":"Fatura","index":0,"n_rows":33,"n_cols":11,"rows_kept":33,"cut":false,"hidden":false,"merged":[[6,0,7,0],[6,1,7,1],[6,2,7,2],[4,1,4,5]]}
[]
[]
["التاريــخ :","2020-09-23","اسم المخزن :",null,"h",null,"ملحوظة من الجهة :",null,"ww",10141,"كود العميل"]
["اسم العميـــــل :",{"$f":"INDEX('البيان الحكومى'!$H$4:$H$136,MATCH($J$3,'البيان الحكومى'!$A$4:$A$133,0))","v":"الهيئة المصرية للشراء الموحد لصالح   وزارة الصحة و السكان  SVYKIH"}]
["العنــوان :",{"$f":"INDEX('البيان الحكومى'!$I$4:$I$136,MATCH($J$3,'البيان الحكومى'!$A$4:$A$133,0))","v":"CM"},null,null,null,null,"امر توريد رقــــــم :",null,{"$f":"J5","v":3410},3410,"رقم امر التوريد"]
[]
["الاجمالى","سعر الوحدة","الكمية","الصنف"]
[null,null,null,"المقاس",null,null,null,null,"ملاحظات","كود الصنف"]
[{"$f":"IF(C9=\"\",\"\",PRODUCT(C9,B9))","v":9},{"$f":"IFERROR(INDEX('الاسعار والاصناف الحكومى'!$C$2:$C$500,MATCH($J9,'الاسعار والاصناف الحكومى'!$A$3:$A$500,0)),\"\")","v":2.25},4,{"$f":"IFERROR(VLOOKUP(J9,'الاسعار والاصناف الحكومى'!$A$2:$C$566,2,0),\"\")","v":"كانيولا مقاسات 26"},null,null,null,null,null,55713]
[{"$f":"IF(C10=\"\",\"\",PRODUCT(C10,B10))","v":12.25},{"$f":"IFERROR(INDEX('الاسعار والاصناف الحكومى'!$C$2:$C$500,MATCH($J10,'الاسعار والاصناف الحكومى'!$A$3:$A$500,0)),\"\")","v":1.75},7,{"$f":"IFERROR(VLOOKUP(J10,'الاسعار والاصناف الحكومى'!$A$2:$C$566,2,0),\"\")","v":"كانيولا مقاسات 24"},null,null,null,null,null,55711]
[22.5,{"$f":"IFERROR(INDEX('الاسعار والاصناف الحكومى'!$C$2:$C$500,MATCH($J11,'الاسعار والاصناف الحكومى'!$A$3:$A$500,0)),\"\")","v":2.25},10,{"$f":"IFERROR(VLOOKUP(J11,'الاسعار والاصناف الحكومى'!$A$2:$C$566,2,0),\"\")","v":"كانيولا مقاسات 26"},null,null,null,null,null,55713]
[15.75,{"$f":"IFERROR(INDEX('الاسعار والاصناف الحكومى'!$C$2:$C$500,MATCH($J12,'الاسعار والاصناف الحكومى'!$A$3:$A$500,0)),\"\")","v":2.25},7,{"$f":"IFERROR(VLOOKUP(J12,'الاسعار والاصناف الحكومى'!$A$2:$C$566,2,0),\"\")","v":"كانيولا مقاسات 26"},null,null,null,null,null,55713]
["",{"$f":"IFERROR(INDEX('الاسعار والاصناف الحكومى'!$C$2:$C$500,MATCH($J13,'الاسعار والاصناف الحكومى'!$A$3:$A$500,0)),\"\")","v":""},null,{"$f":"IFERROR(VLOOKUP(J13,'الاسعار والاصناف الحكومى'!$A$2:$C$566,2,0),\"\")","v":""}]
["",{"$f":"IFERROR(INDEX('الاسعار والاصناف الحكومى'!$C$2:$C$500,MATCH($J14,'الاسعار والاصناف الحكومى'!$A$3:$A$500,0)),\"\")","v":""},null,{"$f":"IFERROR(VLOOKUP(J14,'الاسعار والاصناف الحكومى'!$A$2:$C$566,2,0),\"\")","v":""}]
["",{"$f":"IFERROR(INDEX('الاسعار والاصناف الحكومى'!$C$2:$C$500,MATCH($J15,'الاسعار والاصناف الحكومى'!$A$3:$A$500,0)),\"\")","v":""},null,{"$f":"IFERROR(VLOOKUP(J15,'الاسعار والاصناف الحكومى'!$A$2:$C$566,2,0),\"\")","v":""}]
["",{"$f":"IFERROR(INDEX('الاسعار والاصناف الحكومى'!$C$2:$C$500,MATCH($J16,'الاسعار والاصناف الحكومى'!$A$3:$A$500,0)),\"\")","v":""},null,{"$f":"IFERROR(VLOOKUP(J16,'الاسعار والاصناف الحكومى'!$A$2:$C$566,2,0),\"\")","v":""}]
["",{"$f":"IFERROR(INDEX('الاسعار والاصناف الحكومى'!$C$2:$C$500,MATCH($J17,'الاسعار والاصناف الحكومى'!$A$3:$A$500,0)),\"\")","v":""},null,{"$f":"IFERROR(VLOOKUP(J17,'الاسعار والاصناف الحكومى'!$A$2:$C$566,2,0),\"\")","v":""}]
["",{"$f":"IFERROR(INDEX('الاسعار والاصناف الحكومى'!$C$2:$C$500,MATCH($J18,'الاسعار والاصناف الحكومى'!$A$3:$A$500,0)),\"\")","v":""},null,{"$f":"IFERROR(VLOOKUP(J18,'الاسعار والاصناف الحكومى'!$A$2:$C$566,2,0),\"\")","v":""}]
["",{"$f":"IFERROR(INDEX('الاسعار والاصناف الحكومى'!$C$2:$C$500,MATCH($J19,'الاسعار والاصناف الحكومى'!$A$3:$A$500,0)),\"\")","v":""},null,{"$f":"IFERROR(VLOOKUP(J19,'الاسعار والاصناف الحكومى'!$A$2:$C$566,2,0),\"\")","v":""}]
["",{"$f":"IFERROR(INDEX('الاسعار والاصناف الحكومى'!$C$2:$C$500,MATCH($J20,'الاسعار والاصناف الحكومى'!$A$3:$A$500,0)),\"\")","v":""},null,{"$f":"IFERROR(VLOOKUP(J20,'الاسعار والاصناف الحكومى'!$A$2:$C$566,2,0),\"\")","v":""}]
["",{"$f":"IFERROR(INDEX('الاسعار والاصناف الحكومى'!$C$2:$C$500,MATCH($J21,'الاسعار والاصناف الحكومى'!$A$3:$A$500,0)),\"\")","v":""},null,{"$f":"IFERROR(VLOOKUP(J21,'الاسعار والاصناف الحكومى'!$A$2:$C$566,2,0),\"\")","v":""}]
["",{"$f":"IFERROR(INDEX('الاسعار والاصناف الحكومى'!$C$2:$C$500,MATCH($J22,'الاسعار والاصناف الحكومى'!$A$3:$A$500,0)),\"\")","v":""},null,{"$f":"IFERROR(VLOOKUP(J22,'الاسعار والاصناف الحكومى'!$A$2:$C$566,2,0),\"\")","v":""}]
["",{"$f":"IFERROR(INDEX('الاسعار والاصناف الحكومى'!$C$2:$C$500,MATCH($J23,'الاسعار والاصناف الحكومى'!$A$3:$A$500,0)),\"\")","v":""},null,{"$f":"IFERROR(VLOOKUP(J23,'الاسعار والاصناف الحكومى'!$A$2:$C$566,2,0),\"\")","v":""}]
["",{"$f":"IFERROR(INDEX('الاسعار والاصناف الحكومى'!$C$2:$C$500,MATCH($J24,'الاسعار والاصناف الحكومى'!$A$3:$A$500,0)),\"\")","v":""},null,{"$f":"IFERROR(VLOOKUP(J24,'الاسعار والاصناف الحكومى'!$A$2:$C$566,2,0),\"\")","v":""}]
["",{"$f":"IFERROR(INDEX('الاسعار والاصناف الحكومى'!$C$2:$C$500,MATCH($J25,'الاسعار والاصناف الحكومى'!$A$3:$A$500,0)),\"\")","v":""},null,{"$f":"IFERROR(VLOOKUP(J25,'الاسعار والاصناف الحكومى'!$A$2:$C$566,2,0),\"\")","v":""}]
["",{"$f":"IFERROR(INDEX('الاسعار والاصناف الحكومى'!$C$2:$C$500,MATCH($J26,'الاسعار والاصناف الحكومى'!$A$3:$A$500,0)),\"\")","v":""},null,{"$f":"IFERROR(VLOOKUP(J26,'الاسعار والاصناف الحكومى'!$A$2:$C$566,2,0),\"\")","v":""}]
["",{"$f":"IFERROR(INDEX('الاسعار والاصناف الحكومى'!$C$2:$C$500,MATCH($J27,'الاسعار والاصناف الحكومى'!$A$3:$A$500,0)),\"\")","v":""},null,{"$f":"IFERROR(VLOOKUP(J27,'الاسعار والاصناف الحكومى'!$A$2:$C$566,2,0),\"\")","v":""}]
["",{"$f":"IFERROR(INDEX('الاسعار والاصناف الحكومى'!$C$2:$C$500,MATCH($J28,'الاسعار والاصناف الحكومى'!$A$3:$A$500,0)),\"\")","v":""},null,{"$f":"IFERROR(VLOOKUP(J28,'الاسعار والاصناف الحكومى'!$A$2:$C$566,2,0),\"\")","v":""}]
["",{"$f":"IFERROR(INDEX('الاسعار والاصناف الحكومى'!$C$2:$C$500,MATCH($J29,'الاسعار والاصناف الحكومى'!$A$3:$A$500,0)),\"\")","v":""},null,{"$f":"IFERROR(VLOOKUP(J29,'الاسعار والاصناف الحكومى'!$A$2:$C$566,2,0),\"\")","v":""}]
["",{"$f":"IFERROR(INDEX('الاسعار والاصناف الحكومى'!$C$2:$C$500,MATCH($J30,'الاسعار والاصناف الحكومى'!$A$3:$A$500,0)),\"\")","v":""},null,{"$f":"IFERROR(VLOOKUP(J30,'الاسعار والاصناف الحكومى'!$A$2:$C$566,2,0),\"\")","v":""}]
[{"$f":"SUM(A9:A30)","v":59.5}]
[{"$f":"A31*0.14","v":8.33},null,null,"14 % ضريبة القيمة المضافة"]
[{"$f":"SUM(A31:A32)","v":67.83},{"$f":"NoToTxt2(A33,\"جنيهاً لاغير\",\"قرش\")","v":"فقط سبعة وستون جنيهاً لاغير وثمانمائة وثلاثون قرش"}]

{"sheet":"البيان الحكومى","index":1,"n_rows":137,"n_cols":12,"rows_kept":137,"cut":false,"hidden":false,"merged":[]}
[1,2,3,4,5,6,7,8,9,10,11]
[]
["كود العميل","Entity","Parent_1","Parent_2","Parent_3","Parent_4","Parent_5","اسم العميل بالكامل","العنوان","الشخص المسئول","اسم المخزن","ملاحظات"]
[10141,"وزارة الصحة و السكان ","وزارة الصحة و السكان  ","SV","YK","IH","JP","الهيئة المصرية للشراء الموحد لصالح   وزارة الصحة و السكان  SVYKIH","CM","UX","FR","PF"]
[10227,"فرع بورسعيد ","الهيئة العامة للرعاية الصحية  ","فرع بورسعيد ","CL","QU","JR","الهيئة المصرية للشراء الموحد لصالح   الهيئة العامة للرعاية الصحية  فرع بورسعيد CLQU","LC","DB","QS","XC"]
[10238,"جامعة الزقازيق ","المجلس الأعلى للمستشفيات الجامعية   ","جامعة الزقازيق ","NG","ON","FI","الهيئة المصرية للشراء الموحد لصالح   المجلس الأعلى للمستشفيات الجامعية   جامعة الزقازيق NGON","JK","AU","DA","XE"]
[10242,"مستشفي جامعة المنوفية ","المجلس الأعلى للمستشفيات الجامعية   ","مستشفي جامعة المنوفية ","MF","IS","VP","الهيئة المصرية للشراء الموحد لصالح   المجلس الأعلى للمستشفيات الجامعية   مستشفي جامعة المنوفية MFIS","EW","IA","MV","MS"]
[10248,"جامعة كفر الشيخ","المجلس الأعلى للمستشفيات الجامعية   ","جامعة كفر الشيخ ","IQ","BW","GS","الهيئة المصرية للشراء الموحد لصالح   المجلس الأعلى للمستشفيات الجامعية   جامعة كفر الشيخ IQBW","SZ","DK","UU","KH"]
[10249,"مستشفى جامعة سوهاج","المجلس الأعلى للمستشفيات الجامعية   ","مستشفى جامعة سوهاج ","OG","TA","JN","الهيئة المصرية للشراء الموحد لصالح   المجلس الأعلى للمستشفيات الجامعية   مستشفى جامعة سوهاج OGTA","HW","AI","WF","NL"]
[10303,"المركز الطبى التخصصى للإنتاج الحربى","المركز الطبى التخصصى للإنتاج الحربى  ","QT","NI","YD","ME","الهيئة المصرية للشراء الموحد لصالح   المركز الطبى التخصصى للإنتاج الحربى  QTNIYD","KF","TY","EN","UY"]
[10307,"مديرية صحة الدقهلية","وزارة الصحة و السكان ","قطاع الرعاية الصحية والتمريض  ","مديرية صحة الدقهلية ","CZ","WH","الهيئة المصرية للشراء الموحد لصالح   وزارة الصحة و السكان قطاع الرعاية الصحية والتمريض  مديرية صحة الدقهلية CZ","IF","RJ","UI","YG"]
[10317,"مديرية صحة كفر الشيخ","وزارة الصحة و السكان ","قطاع الرعاية الصحية والتمريض  ","مديرية صحة كفر الشيخ ","CL","OM","الهيئة المصرية للشراء الموحد لصالح   وزارة الصحة و السكان قطاع الرعاية الصحية والتمريض  مديرية صحة كفر الشيخ CL","VA","PL","DD","TY"]
[10330,"مديرية صحة اسوان","وزارة الصحة و السكان ","قطاع الرعاية الصحية والتمريض  ","مديرية صحة اسوان ","SS","TJ","الهيئة المصرية للشراء الموحد لصالح   وزارة الصحة و السكان قطاع الرعاية الصحية والتمريض  مديرية صحة اسوان SS","SO","HJ","AW","LY"]
[10331,"مديرية الشئون الصحية بالبحيرة","وزارة الصحة و السكان ","قطاع الرعاية الصحية والتمريض  ","مديرية الشئون الصحية بالبحيرة ","II","SL","الهيئة المصرية للشراء الموحد لصالح   وزارة الصحة و السكان قطاع الرعاية الصحية والتمريض  مديرية الشئون الصحية بالبحيرة II","TZ","NE","SI","RK"]
[10332,"مديرية صحة مرسى مطروح","وزارة الصحة و السكان ","قطاع الرعاية الصحية والتمريض  ","مديرية صحة مرسى مطروح ","PQ","HK","الهيئة المصرية للشراء الموحد لصالح   وزارة الصحة و السكان قطاع الرعاية الصحية والتمريض  مديرية صحة مرسى مطروح PQ","JO","QR","DW","YY"]
[10379,"مستلزمات مجاني","وزارة الصحة و السكان ","قطاع الرعاية الصحية والتمريض  ","مديرية صحة المنيا ","مستلزمات مجاني","WS","الهيئة المصرية للشراء الموحد لصالح   وزارة الصحة و السكان قطاع الرعاية الصحية والتمريض  مديرية صحة المنيا مستلزمات مجاني","IA","AG","CJ","BG"]
[10510,"الإدارة الصحية فى  جنوب العياط","وزارة الصحة و السكان ","قطاع الرعاية الصحية والتمريض  ","مديرية صحة الجيزة ","الإدارة الصحية فى  جنوب العياط","VJ","الهيئة المصرية للشراء الموحد لصالح   وزارة الصحة و السكان قطاع الرعاية الصحية والتمريض  مديرية صحة الجيزة الإدارة الصحية فى  جنوب العياط","YA","ER","KO","QA"]
[10511,"الإدارة الصحية فى الدقي","وزارة الصحة و السكان ","قطاع الرعاية الصحية والتمريض  ","مديرية صحة الجيزة ","الإدارة الصحية فى الدقي","GG","الهيئة المصرية للشراء الموحد لصالح   وزارة الصحة و السكان قطاع الرعاية الصحية والتمريض  مديرية صحة الجيزة الإدارة الصحية فى الدقي","NN","TZ","LH","UR"]
[10512,"الإدارة الصحية فى ابو النمرس","وزارة الصحة و السكان ","قطاع الرعاية الصحية والتمريض  ","مديرية صحة الجيزة ","الإدارة الصحية فى ابو النمرس","HC","الهيئة المصرية للشراء الموحد لصالح   وزارة الصحة و السكان قطاع الرعاية الصحية والتمريض  مديرية صحة الجيزة الإدارة الصحية فى ابو النمرس","ZL","OU","PT","JP"]
[10513,"الإدارة الصحية فى جنوب الجيزة ","وزارة الصحة و السكان ","قطاع الرعاية الصحية والتمريض  ","مديرية صحة الجيزة ","الإدارة الصحية فى جنوب الجيزة","KF","الهيئة المصرية للشراء الموحد لصالح   وزارة الصحة و السكان قطاع الرعاية الصحية والتمريض  مديرية صحة الجيزة الإدارة الصحية فى جنوب الجيزة","LH","VH","HY","TQ"]
[10514,"الإدارة الصحية فى شرق القناطر","وزارة الصحة و السكان ","قطاع الرعاية الصحية والتمريض  ","مديرية صحة الجيزة ","الإدارة الصحية فى شرق القناطر","XN","الهيئة المصرية للشراء الموحد لصالح   وزارة الصحة و السكان قطاع الرعاية الصحية والتمريض  مديرية صحة الجيزة الإدارة الصحية فى شرق القناطر","HI","MK","KG","BF"]
[10515,"الإدارة الصحية فى العجوزة","وزارة الصحة و السكان ","قطاع الرعاية الصحية والتمريض  ","مديرية صحة الجيزة ","الإدارة الصحية فى العجوزة","LF","الهيئة المصرية للشراء الموحد لصالح   وزارة الصحة و السكان قطاع الرعاية الصحية والتمريض  مديرية صحة الجيزة الإدارة الصحية فى العجوزة","DT","ZP","SH","BY"]
[10516,"الإدارة الصحية فى الواحات ","وزارة الصحة و السكان ","قطاع الرعاية الصحية والتمريض  ","مديرية صحة الجيزة ","الإدارة الصحية فى الواحات","YE","الهيئة المصرية للشراء الموحد لصالح   وزارة الصحة و السكان قطاع الرعاية الصحية والتمريض  مديرية صحة الجيزة الإدارة الصحية فى الواحات","TB","FB","NP","BH"]
[10517,"الإدارة الصحية فى اكتوبر ","وزارة الصحة و السكان ","قطاع الرعاية الصحية والتمريض  ","مديرية صحة الجيزة ","الإدارة الصحية فى اكتوبر","DH","الهيئة المصرية للشراء الموحد لصالح   وزارة الصحة و السكان قطاع الرعاية الصحية والتمريض  مديرية صحة الجيزة الإدارة الصحية فى اكتوبر","AH","IJ","AM","VU"]
[10518,"الإدارة الصحية فى شمال الجيزة","وزارة الصحة و السكان ","قطاع الرعاية الصحية والتمريض  ","مديرية صحة الجيزة ","الإدارة الصحية فى شمال الجيزة","YA","الهيئة المصرية للشراء الموحد لصالح   وزارة الصحة و السكان قطاع الرعاية الصحية والتمريض  مديرية صحة الجيزة الإدارة الصحية فى شمال الجيزة","IL","DB","LS","HG"]
[10519,"الإدارة الصحية فى الهرم","وزارة الصحة و السكان ","قطاع الرعاية الصحية والتمريض  ","مديرية صحة الجيزة ","الإدارة الصحية فى الهرم","EI","الهيئة المصرية للشراء الموحد لصالح   وزارة الصحة و السكان قطاع الرعاية الصحية والتمريض  مديرية صحة الجيزة الإدارة الصحية فى الهرم","SK","TP","LS","NQ"]
[10520,"الإدارة الصحية فى البدرشين","وزارة الصحة و السكان ","قطاع الرعاية الصحية والتمريض  ","مديرية صحة الجيزة ","الإدارة الصحية فى البدرشين","YR","الهيئة المصرية للشراء الموحد لصالح   وزارة الصحة و السكان قطاع الرعاية الصحية والتمريض  مديرية صحة الجيزة الإدارة الصحية فى البدرشين","XD","ON","JU","BV"]
[10521,"الإدارة الصحية فى اوسيم ","وزارة الصحة و السكان ","قطاع الرعاية الصحية والتمريض  ","مديرية صحة الجيزة ","الإدارة الصحية فى اوسيم","RB","الهيئة المصرية للشراء الموحد لصالح   وزارة الصحة و السكان قطاع الرعاية الصحية والتمريض  مديرية صحة الجيزة الإدارة الصحية فى اوسيم","BH","HJ","ZS","YT"]
[10522,"الإدارة الصحية فى كرداسة ","وزارة الصحة و السكان ","قطاع الرعاية الصحية والتمريض  ","مديرية صحة الجيزة ","الإدارة الصحية فى كرداسة","JB","الهيئة المصرية للشراء الموحد لصالح   وزارة الصحة و السكان قطاع الرعاية الصحية والتمريض  مديرية صحة الجيزة الإدارة الصحية فى كرداسة","SZ","LV","YH","KK"]
[10523,"الإدارة الصحية فى الشيخ زايد ","وزارة الصحة و السكان ","قطاع الرعاية الصحية والتمريض  ","مديرية صحة الجيزة ","الإدارة الصحية فى الشيخ زايد","WQ","الهيئة المصرية للشراء الموحد لصالح   وزارة الصحة و السكان قطاع الرعاية الصحية والتمريض  مديرية صحة الجيزة الإدارة الصحية فى الشيخ زايد","UG","DB","FI","EH"]
[10524,"الإدارة الصحية فى العمرانية ","وزارة الصحة و السكان ","قطاع الرعاية الصحية والتمريض  ","مديرية صحة الجيزة ","الإدارة الصحية فى العمرانية","UO","الهيئة المصرية للشراء الموحد لصالح   وزارة الصحة و السكان قطاع الرعاية الصحية والتمريض  مديرية صحة الجيزة الإدارة الصحية فى العمرانية","OV","VH","HI","VZ"]
[10525,"الإدارة الصحية فى الوراق","وزارة الصحة و السكان ","قطاع الرعاية الصحية والتمريض  ","مديرية صحة الجيزة ","الإدارة الصحية فى الوراق","KG","الهيئة المصرية للشراء الموحد لصالح   وزارة الصحة و السكان قطاع الرعاية الصحية والتمريض  مديرية صحة الجيزة الإدارة الصحية فى الوراق","DE","RT","WE","FF"]
[10526,"الإدارة الصحية فى اطفيح","وزارة الصحة و السكان ","قطاع الرعاية الصحية والتمريض  ","مديرية صحة الجيزة ","الإدارة الصحية فى اطفيح","WI","الهيئة المصرية للشراء الموحد لصالح   وزارة الصحة و السكان قطاع الرعاية الصحية والتمريض  مديرية صحة الجيزة الإدارة الصحية فى اطفيح","UK","EN","SX","IB"]
[10527,"الإدارة الصحية فى بولاق ","وزارة الصحة و السكان ","قطاع الرعاية الصحية والتمريض  ","مديرية صحة الجيزة ","الإدارة الصحية فى بولاق","KK","الهيئة المصرية للشراء الموحد لصالح   وزارة الصحة و السكان قطاع الرعاية الصحية والتمريض  مديرية صحة الجيزة الإدارة الصحية فى بولاق","UB","PG","YX","VH"]
[10528,"الإدارة الصحية فى الحوامدية ","وزارة الصحة و السكان ","قطاع الرعاية الصحية والتمريض  ","مديرية صحة الجيزة ","الإدارة الصحية فى الحوامدية","IF","الهيئة المصرية للشراء الموحد لصالح   وزارة الصحة و السكان قطاع الرعاية الصحية والتمريض  مديرية صحة الجيزة الإدارة الصحية فى الحوامدية","TG","LG","NL","PZ"]
[10529,"الإدارة الصحية فى غرب القناطر","وزارة الصحة و السكان ","قطاع الرعاية الصحية والتمريض  ","مديرية صحة الجيزة ","الإدارة الصحية فى غرب القناطر","UY","الهيئة المصرية للشراء الموحد لصالح   وزارة الصحة و السكان قطاع الرعاية الصحية والتمريض  مديرية صحة الجيزة الإدارة الصحية فى غرب القناطر","OK","WZ","KI","PD"]
[10530,"الإدارة الصحية فى شمال العياط ","وزارة الصحة و السكان ","قطاع الرعاية الصحية والتمريض  ","مديرية صحة الجيزة ","الإدارة الصحية فى شمال العياط","RY","الهيئة المصرية للشراء الموحد لصالح   وزارة الصحة و السكان قطاع الرعاية الصحية والتمريض  مديرية صحة الجيزة الإدارة الصحية فى شمال العياط","TC","CP","AA","AP"]
[10531,"الإدارة الصحية فى الصف ","وزارة الصحة و السكان ","قطاع الرعاية الصحية والتمريض  ","مديرية صحة الجيزة ","الإدارة الصحية فى الصف","PQ","الهيئة المصرية للشراء الموحد لصالح   وزارة الصحة و السكان قطاع الرعاية الصحية والتمريض  مديرية صحة الجيزة الإدارة الصحية فى الصف","الإدارة الصحية بالصف بجوار محكمة الصف - الصف - الجيزة","01069202208","مخزن مستلزمات","VW"]
[10742,"مركز طبي المطرية بمنطثة المطرية","وزارة الصحة و السكان ","قطاع الرعاية الصحية والتمريض  ","مديرية صحة القاهرة ","منطقة المطريه الطبية","مركز طبي المطرية بمنطثة المطرية","الهيئة المصرية للشراء الموحد لصالح   وزارة الصحة و السكان قطاع الرعاية الصحية والتمريض  مديرية صحة القاهرة منطقة المطريه الطبية","KZ","TW","YN","FY"]
[11654,"مصر الحرة (مستلزمات)","وزارة الصحة و السكان ","قطاع الرعاية الصحية والتمريض  ","مديرية صحة المنيا ","مصر الحرة","مصر الحرة (مستلزمات)","الهيئة المصرية للشراء الموحد لصالح   وزارة الصحة و السكان قطاع الرعاية الصحية والتمريض  مديرية صحة المنيا مصر الحرة","TI","XR","DK","RH"]
[11703,"العدوة المركزي (مستلزمات)","وزارة الصحة و السكان ","قطاع الرعاية الصحية والتمريض  ","مديرية صحة المنيا ","العدوة المركزي","العدوة المركزي (مستلزمات)","الهيئة المصرية للشراء الموحد لصالح   وزارة الصحة و السكان قطاع الرعاية الصحية والتمريض  مديرية صحة المنيا العدوة المركزي","AM","NM","PH","XM"]
[13474,"مركز طبي المستقبل بمنطقة الشروق","وزارة الصحة و السكان ","قطاع الرعاية الصحية والتمريض  ","مديرية صحة القاهرة ","منطقة الشروق الطبية","مركز طبي المستقبل بمنطقة الشروق","الهيئة المصرية للشراء الموحد لصالح   وزارة الصحة و السكان قطاع الرعاية الصحية والتمريض  مديرية صحة القاهرة منطقة الشروق الطبية","LF","BQ","HE","QO"]
[13475,"مركز طبي صحة الاسرة 63م بمنطقة الشروق","وزارة الصحة و السكان ","قطاع الرعاية الصحية والتمريض  ","مديرية صحة القاهرة ","منطقة الشروق الطبية","مركز طبي صحة الاسرة 63م بمنطقة الشروق","الهيئة المصرية للشراء الموحد لصالح   وزارة الصحة و السكان قطاع الرعاية الصحية والتمريض  مديرية صحة القاهرة منطقة الشروق الطبية","UG","QN","JE","XY"]
[13476,"مركز طبي صحة الاسرة 70م بمنطقة الشروق","وزارة الصحة و السكان ","قطاع الرعاية الصحية والتمريض  ","مديرية صحة القاهرة ","منطقة الشروق الطبية","مركز طبي صحة الاسرة 70م بمنطقة الشروق","الهيئة المصرية للشراء الموحد لصالح   وزارة الصحة و السكان قطاع الرعاية الصحية والتمريض  مديرية صحة القاهرة منطقة الشروق الطبية","YO","PI","SZ","LG"]
[13477,"مركز  طبي الاول بمنطقة القاهرة الجديدة","وزارة الصحة و السكان ","قطاع الرعاية الصحية والتمريض  ","مديرية صحة القاهرة ","منطقة القاهرة الجديدة","مركز  طبي الاول بمنطقة القاهرة الجديدة","الهيئة المصرية للشراء الموحد لصالح   وزارة الصحة و السكان قطاع الرعاية الصحية والتمريض  مديرية صحة القاهرة منطقة القاهرة الجديدة","SS","JR","IZ","PC"]
[13481,"مركز طبى طب الاسره  بمنطقة القاهرة الجديدة","وزارة الصحة و السكان ","قطاع الرعاية الصحية والتمريض  ","مديرية صحة القاهرة ","منطقة القاهرة الجديدة","مركز طبى طب الاسره  بمنطقة القاهرة الجديدة","الهيئة المصرية للشراء الموحد لصالح   وزارة الصحة و السكان قطاع الرعاية الصحية والتمريض  مديرية صحة القاهرة منطقة القاهرة الجديدة","PD","ZA","KT","HL"]
[13487,"مركز طبي السلام اول ","وزارة الصحة و السكان ","قطاع الرعاية الصحية والتمريض  ","مديرية صحة القاهرة ","منطقة السلام اول الطبية","مركز طبي السلام اول","الهيئة المصرية للشراء الموحد لصالح   وزارة الصحة و السكان قطاع الرعاية الصحية والتمريض  مديرية صحة القاهرة منطقة السلام اول الطبية","YL","XB","HD","ZW"]
[13488,"مركز طبي السلام ثان بمنطقة السلام اول","وزارة الصحة و السكان ","قطاع الرعاية الصحية والتمريض  ","مديرية صحة القاهرة ","منطقة السلام اول الطبية","مركز طبي السلام ثان بمنطقة السلام اول","الهيئة المصرية للشراء الموحد لصالح   وزارة الصحة و السكان قطاع الرعاية الصحية والتمريض  مديرية صحة القاهرة منطقة السلام اول الطبية","JN","TX","LH","DA"]
[13492,"مركز طبي أهالينا بمنطقة السلام اول","وزارة الصحة و السكان ","قطاع الرعاية الصحية والتمريض  ","مديرية صحة القاهرة ","منطقة السلام اول الطبية","مركز طبي أهالينا بمنطقة السلام اول","الهيئة المصرية للشراء الموحد لصالح   وزارة الصحة و السكان قطاع الرعاية الصحية والتمريض  مديرية صحة القاهرة منطقة السلام اول الطبية","LN","AA","BX","MT"]
[13494,"مركز طبي المرج الشرقية  بمنطقة المرج","وزارة الصحة و السكان ","قطاع الرعاية الصحية والتمريض  ","مديرية صحة القاهرة ","منطقة المرج الطبية","مركز طبي المرج الشرقية  بمنطقة المرج","الهيئة المصرية للشراء الموحد لصالح   وزارة الصحة و السكان قطاع الرعاية الصحية والتمريض  مديرية صحة القاهرة منطقة المرج الطبية","KO","YO","VP","KG"]
[13495,"مركز طبي الاندلس بمنطقة المرج","وزارة الصحة و السكان ","قطاع الرعاية الصحية والتمريض  ","مديرية صحة القاهرة ","منطقة المرج الطبية","مركز طبي الاندلس بمنطقة المرج","الهيئة المصرية للشراء الموحد لصالح   وزارة الصحة و السكان قطاع الرعاية الصحية والتمريض  مديرية صحة القاهرة منطقة المرج الطبية","KN","VC","NQ","ZX"]
[13497,"مركز طبي كفر الشرفا بمنطقة المرج","وزارة الصحة و السكان ","قطاع الرعاية الصحية والتمريض  ","مديرية صحة القاهرة ","منطقة المرج الطبية","مركز طبي كفر الشرفا بمنطقة المرج","الهيئة المصرية للشراء الموحد لصالح   وزارة الصحة و السكان قطاع الرعاية الصحية والتمريض  مديرية صحة القاهرة منطقة المرج الطبية","AE","FK","PX","BC"]
[13498,"مركز طبي بركة الحاج بمنطقة المرج","وزارة الصحة و السكان ","قطاع الرعاية الصحية والتمريض  ","مديرية صحة القاهرة ","منطقة المرج الطبية","مركز طبي بركة الحاج بمنطقة المرج","الهيئة المصرية للشراء الموحد لصالح   وزارة الصحة و السكان قطاع الرعاية الصحية والتمريض  مديرية صحة القاهرة منطقة المرج الطبية","KO","AR","FJ","GY"]
[13499,"مركز طبي ابو صير  بمنطقة المرج","وزارة الصحة و السكان ","قطاع الرعاية الصحية والتمريض  ","مديرية صحة القاهرة ","منطقة المرج الطبية","مركز طبي ابو صير  بمنطقة المرج","الهيئة المصرية للشراء الموحد لصالح   وزارة الصحة و السكان قطاع الرعاية الصحية والتمريض  مديرية صحة القاهرة منطقة المرج الطبية","RM","KW","UL","OX"]
[13503,"مركزطبي طبي الاميرية","وزارة الصحة و السكان ","قطاع الرعاية الصحية والتمريض  ","مديرية صحة القاهرة ","منطقة الاميرية الطبية","مركزطبي طبي الاميرية","الهيئة المصرية للشراء الموحد لصالح   وزارة الصحة و السكان قطاع الرعاية الصحية والتمريض  مديرية صحة القاهرة منطقة الاميرية الطبية","BH","AG","JN","ZU"]
[13508,"مركز طبي المحكمه بمنطقة النزهة","وزارة الصحة و السكان ","قطاع الرعاية الصحية والتمريض  ","مديرية صحة القاهرة ","منطقة النزهه الطبية","مركز طبي المحكمه بمنطقة النزهة","الهيئة المصرية للشراء الموحد لصالح   وزارة الصحة و السكان قطاع الرعاية الصحية والتمريض  مديرية صحة القاهرة منطقة النزهه الطبية","NL","UQ","MY","WL"]
[13510,"مركز طبي الهايكستب بمنطقة النزهة","وزارة الصحة و السكان ","قطاع الرعاية الصحية والتمريض  ","مديرية صحة القاهرة ","منطقة النزهه الطبية","مركز طبي الهايكستب بمنطقة النزهة","الهيئة المصرية للشراء الموحد لصالح   وزارة الصحة و السكان قطاع الرعاية الصحية والتمريض  مديرية صحة القاهرة منطقة النزهه الطبية","RM","KA","UC","IZ"]
[13511,"مركز طبي الشيراتون بمنطقة النزهة","وزارة الصحة و السكان ","قطاع الرعاية الصحية والتمريض  ","مديرية صحة القاهرة ","منطقة النزهه الطبية","مركز طبي الشيراتون بمنطقة النزهة","الهيئة المصرية للشراء الموحد لصالح   وزارة الصحة و السكان قطاع الرعاية الصحية والتمريض  مديرية صحة القاهرة منطقة النزهه الطبية","KT","VQ","KX","YK"]
[13512,"مركز طبي الحي السادس بمنطقة نصر غرب","وزارة الصحة و السكان ","قطاع الرعاية الصحية والتمريض  ","مديرية صحة القاهرة ","منطقة نصر غرب الطبية","مركز طبي الحي السادس بمنطقة نصر غرب","الهيئة المصرية للشراء الموحد لصالح   وزارة الصحة و السكان قطاع الرعاية الصحية والتمريض  مديرية صحة القاهرة منطقة نصر غرب الطبية","XG","BK","XZ","BB"]
[13513,"مركز طب اسرة بالحي السابع بمنطقة نصر شرق","وزارة الصحة و السكان ","قطاع الرعاية الصحية والتمريض  ","مديرية صحة القاهرة ","منطقة مدينة نصر شرق الطبية","مركز طب اسرة بالحي السابع بمنطقة نصر شرق","الهيئة المصرية للشراء الموحد لصالح   وزارة الصحة و السكان قطاع الرعاية الصحية والتمريض  مديرية صحة القاهرة منطقة مدينة نصر شرق الطبية","IJ","XG","TM","HW"]
[13514,"مركز طب اسرة بالهجانة  بمنطقة نصر شرق","وزارة الصحة و السكان ","قطاع الرعاية الصحية والتمريض  ","مديرية صحة القاهرة ","منطقة مدينة نصر شرق الطبية","مركز طب اسرة بالهجانة  بمنطقة نصر شرق","الهيئة المصرية للشراء الموحد لصالح   وزارة الصحة و السكان قطاع الرعاية الصحية والتمريض  مديرية صحة القاهرة منطقة مدينة نصر شرق الطبية","BZ","VZ","AQ","EN"]
[13517,"مركز طب اسرة  بالجبرتي  بمنطقة منشاة ناصر","وزارة الصحة و السكان ","قطاع الرعاية الصحية والتمريض  ","مديرية صحة القاهرة ","منطقة منشأة ناصر الطبية","مركز طب اسرة  بالجبرتي  بمنطقة منشاة ناصر","الهيئة المصرية للشراء الموحد لصالح   وزارة الصحة و السكان قطاع الرعاية الصحية والتمريض  مديرية صحة القاهرة منطقة منشأة ناصر الطبية","YG","AL","OI","AG"]
[13518,"مركز طب الاسره بالدراسه بمنطقة وسط","وزارة الصحة و السكان ","قطاع الرعاية الصحية والتمريض  ","مديرية صحة القاهرة ","منطقة وسط الطبية","مركز طب الاسره بالدراسه بمنطقة وسط","الهيئة المصرية للشراء الموحد لصالح   وزارة الصحة و السكان قطاع الرعاية الصحية والتمريض  مديرية صحة القاهرة منطقة وسط الطبية","JX","WM","MJ","PY"]
[13519,"مركز طب الاسره الدرب الاحمر بمنطقة وسط","وزارة الصحة و السكان ","قطاع الرعاية الصحية والتمريض  ","مديرية صحة القاهرة ","منطقة وسط الطبية","مركز طب الاسره الدرب الاحمر بمنطقة وسط","الهيئة المصرية للشراء الموحد لصالح   وزارة الصحة و السكان قطاع الرعاية الصحية والتمريض  مديرية صحة القاهرة منطقة وسط الطبية","CS","NS","PY","CS"]
[13524,"مركز  طبي عابدين ","وزارة الصحة و السكان ","قطاع الرعاية الصحية والتمريض  ","مديرية صحة القاهرة ","منطقة عابدين الطبية","مركز  طبي عابدين","الهيئة المصرية للشراء الموحد لصالح   وزارة الصحة و السكان قطاع الرعاية الصحية والتمريض  مديرية صحة القاهرة منطقة عابدين الطبية","UI","GH","RS","LQ"]
[13532,"المركز الحضرى بروض الفرج","وزارة الصحة و السكان ","قطاع الرعاية الصحية والتمريض  ","مديرية صحة القاهرة ","منطقة روض الفرج الطبية","المركز الحضرى بروض الفرج","الهيئة المصرية للشراء الموحد لصالح   وزارة الصحة و السكان قطاع الرعاية الصحية والتمريض  مديرية صحة القاهرة منطقة روض الفرج الطبية","QG","ET","JV","TS"]
[13533,"مركز رعاية طفل العسال بشبرا","وزارة الصحة و السكان ","قطاع الرعاية الصحية والتمريض  ","مديرية صحة القاهرة ","منطقة شبرا الطبية","مركز رعاية طفل العسال بشبرا","الهيئة المصرية للشراء الموحد لصالح   وزارة الصحة و السكان قطاع الرعاية الصحية والتمريض  مديرية صحة القاهرة منطقة شبرا الطبية","ZD","TF","EX","QD"]
[13540,"مركز طبي التونسي القديم بالخليفة","وزارة الصحة و السكان ","قطاع الرعاية الصحية والتمريض  ","مديرية صحة القاهرة ","منطقة الخليفة الطبية","مركز طبي التونسي القديم بالخليفة","الهيئة المصرية للشراء الموحد لصالح   وزارة الصحة و السكان قطاع الرعاية الصحية والتمريض  مديرية صحة القاهرة منطقة الخليفة الطبية","JX","SV","EP","VF"]
[13550,"مركز طب اسرة الزهراء بمنطقة مصر القديمة","وزارة الصحة و السكان ","قطاع الرعاية الصحية والتمريض  ","مديرية صحة القاهرة ","منطقة مصرالقديمه الطبية","مركز طب اسرة الزهراء بمنطقة مصر القديمة","الهيئة المصرية للشراء الموحد لصالح   وزارة الصحة و السكان قطاع الرعاية الصحية والتمريض  مديرية صحة القاهرة منطقة مصرالقديمه الطبية","CU","GT","VO","ET"]
[13553,"مركز صحة - صقر قريش بالبساتين","وزارة الصحة و السكان ","قطاع الرعاية الصحية والتمريض  ","مديرية صحة القاهرة ","منطقة البساتين الطبية","مركز صحة - صقر قريش بالبساتين","الهيئة المصرية للشراء الموحد لصالح   وزارة الصحة و السكان قطاع الرعاية الصحية والتمريض  مديرية صحة القاهرة منطقة البساتين الطبية","WG","HU","VZ","UD"]
[13555,"مركز طبي - بساتين غرب","وزارة الصحة و السكان ","قطاع الرعاية الصحية والتمريض  ","مديرية صحة القاهرة ","منطقة البساتين الطبية","مركز طبي - بساتين غرب","الهيئة المصرية للشراء الموحد لصالح   وزارة الصحة و السكان قطاع الرعاية الصحية والتمريض  مديرية صحة القاهرة منطقة البساتين الطبية","RO","BY","KY","FC"]
[13557,"مركز طبي العوضي  بالبساتين","وزارة الصحة و السكان ","قطاع الرعاية الصحية والتمريض  ","مديرية صحة القاهرة ","منطقة البساتين الطبية","مركز طبي العوضي  بالبساتين","الهيئة المصرية للشراء الموحد لصالح   وزارة الصحة و السكان قطاع الرعاية الصحية والتمريض  مديرية صحة القاهرة منطقة البساتين الطبية","UV","DV","KQ","TF"]
[13558,"عيادة حي عزبة الورد بالبساتين","وزارة الصحة و السكان ","قطاع الرعاية الصحية والتمريض  ","مديرية صحة القاهرة ","منطقة البساتين الطبية","عيادة حي عزبة الورد بالبساتين","الهيئة المصرية للشراء الموحد لصالح   وزارة الصحة و السكان قطاع الرعاية الصحية والتمريض  مديرية صحة القاهرة منطقة البساتين الطبية","LT","BF","RM","ZB"]
[13566,"مركز صحة - طبي مجاورة 5  ب 15 مايو","وزارة الصحة و السكان ","قطاع الرعاية الصحية والتمريض  ","مديرية صحة القاهرة ","منطقة 15مايو الطبية","مركز صحة - طبي مجاورة 5  ب 15 مايو","الهيئة المصرية للشراء الموحد لصالح   وزارة الصحة و السكان قطاع الرعاية الصحية والتمريض  مديرية صحة القاهرة منطقة 15مايو الطبية","AI","NJ","NB","VA"]
[13568,"مركز صحة - طبي مجاورة 25 ب 15 مايو","وزارة الصحة و السكان ","قطاع الرعاية الصحية والتمريض  ","مديرية صحة القاهرة ","منطقة 15مايو الطبية","مركز صحة - طبي مجاورة 25 ب 15 مايو","الهيئة المصرية للشراء الموحد لصالح   وزارة الصحة و السكان قطاع الرعاية الصحية والتمريض  مديرية صحة القاهرة منطقة 15مايو الطبية","LA","FY","JU","JV"]
[13569,"مركز صحة - مركز طبى الامتداد ب 15 مايو","وزارة الصحة و السكان ","قطاع الرعاية الصحية والتمريض  ","مديرية صحة القاهرة ","منطقة 15مايو الطبية","مركز صحة - مركز طبى الامتداد ب 15 مايو","الهيئة المصرية للشراء الموحد لصالح   وزارة الصحة و السكان قطاع الرعاية الصحية والتمريض  مديرية صحة القاهرة منطقة 15مايو الطبية","FS","VL","RK","HT"]
[13571,"مركز طبى الست خضره  بمنطقة حلوان","وزارة الصحة و السكان ","قطاع الرعاية الصحية والتمريض  ","مديرية صحة القاهرة ","منطقة حلوان الطبية","مركز طبى الست خضره  بمنطقة حلوان","الهيئة المصرية للشراء الموحد لصالح   وزارة الصحة و السكان قطاع الرعاية الصحية والتمريض  مديرية صحة القاهرة منطقة حلوان الطبية","LB","BC","WI","TM"]
[13577,"رعايه طفل حلوان ثانى  بمنطقة حلوان","وزارة الصحة و السكان ","قطاع الرعاية الصحية والتمريض  ","مديرية صحة القاهرة ","منطقة حلوان الطبية","رعايه طفل حلوان ثانى  بمنطقة حلوان","الهيئة المصرية للشراء الموحد لصالح   وزارة الصحة و السكان قطاع الرعاية الصحية والتمريض  مديرية صحة القاهرة منطقة حلوان الطبية","AA","KX","FD","PT"]
[13583,"مركز طبى حدائق حلوان بمنطقة المعصرة","وزارة الصحة و السكان ","قطاع الرعاية الصحية والتمريض  ","مديرية صحة القاهرة ","منطقة المعصرة الطبية","مركز طبى حدائق حلوان بمنطقة المعصرة","الهيئة المصرية للشراء الموحد لصالح   وزارة الصحة و السكان قطاع الرعاية الصحية والتمريض  مديرية صحة القاهرة منطقة المعصرة الطبية","FQ","HY","ZM","XT"]
[15281,"هيئة التأمين الصحى / البحر الاحمر","وزارة الصحة و السكان ","هيئة التأمين الصحى  ","هيئة التأمين الصحى _ البحر الاحمر ","WO","RU","الهيئة المصرية للشراء الموحد لصالح   وزارة الصحة و السكان هيئة التأمين الصحى  هيئة التأمين الصحى _ البحر الاحمر WO","ZY","PD","DR","HK"]
[15285,"هيئة التأمين الصحى / الشرقيّة","وزارة الصحة و السكان ","هيئة التأمين الصحى  ","هيئة التأمين الصحى _ الشرقيّة ","TY","YP","الهيئة المصرية للشراء الموحد لصالح   وزارة الصحة و السكان هيئة التأمين الصحى  هيئة التأمين الصحى _ الشرقيّة TY","YP","RA","MA","AG"]
[15297,"هيئة التأمين الصحى / اسوان","وزارة الصحة و السكان ","هيئة التأمين الصحى  ","هيئة التأمين الصحى _ اسوان","LM","JD","الهيئة المصرية للشراء الموحد لصالح   وزارة الصحة و السكان هيئة التأمين الصحى  هيئة التأمين الصحى _ اسوانLM","VS","HG","QG","CU"]
[15299,"هيئة التأمين الصحى / كفر الشيخ","وزارة الصحة و السكان ","هيئة التأمين الصحى  ","هيئة التأمين الصحى _ كفر الشيخ  ","HM","ND","الهيئة المصرية للشراء الموحد لصالح   وزارة الصحة و السكان هيئة التأمين الصحى  هيئة التأمين الصحى _ كفر الشيخ  HM","TV","FR","QR","ZC"]
[15303,"هيئة التأمين الصحى / السويس","وزارة الصحة و السكان ","هيئة التأمين الصحى  ","هيئة التأمين الصحى _ السويس ","XB","EU","الهيئة المصرية للشراء الموحد لصالح   وزارة الصحة و السكان هيئة التأمين الصحى  هيئة التأمين الصحى _ السويس XB","TI","LT","NM","ZA"]
[15407,"مستشفى 6 اكتوبر المركزى  (مجاني)","وزارة الصحة و السكان ","قطاع الرعاية الصحية والتمريض  ","مديرية صحة الجيزة ","مستشفى 6 اكتوبر المركزى  (مجاني)","UJ","الهيئة المصرية للشراء الموحد لصالح   وزارة الصحة و السكان قطاع الرعاية الصحية والتمريض  مديرية صحة الجيزة مستشفى 6 اكتوبر المركزى  (مجاني)","XQ","MI","RK","CC"]
[15408,"مستشفى أبوالنمرس المركزي (مجاني)","وزارة الصحة و السكان ","قطاع الرعاية الصحية والتمريض  ","مديرية صحة الجيزة ","مستشفى أبوالنمرس المركزي (مجاني)","GE","الهيئة المصرية للشراء الموحد لصالح   وزارة الصحة و السكان قطاع الرعاية الصحية والتمريض  مديرية صحة الجيزة مستشفى أبوالنمرس المركزي (مجاني)","YS","MW","AL","FY"]
[15409,"مستشفى اطفيح المركزي (مجاني)","وزارة الصحة و السكان ","قطاع الرعاية الصحية والتمريض  ","مديرية صحة الجيزة ","مستشفى اطفيح المركزي (مجاني)","SY","الهيئة المصرية للشراء الموحد لصالح   وزارة الصحة و السكان قطاع الرعاية الصحية والتمريض  مديرية صحة الجيزة مستشفى اطفيح المركزي (مجاني)","TX","CT","HU","BV"]
[15410,"مستشفى البدرشين المركزي (مجاني)","وزارة الصحة و السكان ","قطاع الرعاية الصحية والتمريض  ","مديرية صحة الجيزة ","مستشفى البدرشين المركزي (مجاني)","KU","الهيئة المصرية للشراء الموحد لصالح   وزارة الصحة و السكان قطاع الرعاية الصحية والتمريض  مديرية صحة الجيزة مستشفى البدرشين المركزي (مجاني)","FG","CK","LT","BO"]
[15411,"مستشفى التحرير العام (مجاني)","وزارة الصحة و السكان ","قطاع الرعاية الصحية والتمريض  ","مديرية صحة الجيزة ","مستشفى التحرير العام (مجاني)","JD","الهيئة المصرية للشراء الموحد لصالح   وزارة الصحة و السكان قطاع الرعاية الصحية والتمريض  مديرية صحة الجيزة مستشفى التحرير العام (مجاني)","ND","DM","RO","JA"]
[15413,"مستشفى الصف المركزي (مجاني)","وزارة الصحة و السكان ","قطاع الرعاية الصحية والتمريض  ","مديرية صحة الجيزة ","مستشفى الصف المركزي (مجاني)","VI","الهيئة المصرية للشراء الموحد لصالح   وزارة الصحة و السكان قطاع الرعاية الصحية والتمريض  مديرية صحة الجيزة مستشفى الصف المركزي (مجاني)","OX","DU","DP","HA"]
[15414,"مستشفى العياط المركزي (مجاني)","وزارة الصحة و السكان ","قطاع الرعاية الصحية والتمريض  ","مديرية صحة الجيزة ","مستشفى العياط المركزي (مجاني)","GD","الهيئة المصرية للشراء الموحد لصالح   وزارة الصحة و السكان قطاع الرعاية الصحية والتمريض  مديرية صحة الجيزة مستشفى العياط المركزي (مجاني)","UB","TV","OD","QW"]
[15415,"مستشفى الواحات المركزي (مجاني)","وزارة الصحة و السكان ","قطاع الرعاية الصحية والتمريض  ","مديرية صحة الجيزة ","مستشفى الواحات المركزي (مجاني)","MP","الهيئة المصرية للشراء الموحد لصالح   وزارة الصحة و السكان قطاع الرعاية الصحية والتمريض  مديرية صحة الجيزة مستشفى الواحات المركزي (مجاني)","EP","QY","JD","YB"]
[15416,"مستشفى الوراق المركزى (مجاني)","وزارة الصحة و السكان ","قطاع الرعاية الصحية والتمريض  ","مديرية صحة الجيزة ","مستشفى الوراق المركزى (مجاني)","NU","الهيئة المصرية للشراء الموحد لصالح   وزارة الصحة و السكان قطاع الرعاية الصحية والتمريض  مديرية صحة الجيزة مستشفى الوراق المركزى (مجاني)","LD","UT","GF","VI"]
[15418,"مستشفى ام المصريين العام (مجاني)","وزارة الصحة و السكان ","قطاع الرعاية الصحية والتمريض  ","مديرية صحة الجيزة ","مستشفى ام المصريين العام (مجاني)","GN","الهيئة المصرية للشراء الموحد لصالح   وزارة الصحة و السكان قطاع الرعاية الصحية والتمريض  مديرية صحة الجيزة مستشفى ام المصريين العام (مجاني)","OZ","RF","LY","RH"]
[15419,"مستشفى إمبابة العام (مجاني)","وزارة الصحة و السكان ","قطاع الرعاية الصحية والتمريض  ","مديرية صحة الجيزة ","مستشفى إمبابة العام (مجاني)","HX","الهيئة المصرية للشراء الموحد لصالح   وزارة الصحة و السكان قطاع الرعاية الصحية والتمريض  مديرية صحة الجيزة مستشفى إمبابة العام (مجاني)","TD","UH","CT","DQ"]
[15420,"مستشفى اوسيم المركزي (مجاني)","وزارة الصحة و السكان ","قطاع الرعاية الصحية والتمريض  ","مديرية صحة الجيزة ","مستشفى اوسيم المركزي (مجاني)","HS","الهيئة المصرية للشراء الموحد لصالح   وزارة الصحة و السكان قطاع الرعاية الصحية والتمريض  مديرية صحة الجيزة مستشفى اوسيم المركزي (مجاني)","IC","EW","VM","KF"]
[15421,"مستشفى بولاق الدكرور العام (مجاني)","وزارة الصحة و السكان ","قطاع الرعاية الصحية والتمريض  ","مديرية صحة الجيزة ","مستشفى بولاق الدكرور العام (مجاني)","BX","الهيئة المصرية للشراء الموحد لصالح   وزارة الصحة و السكان قطاع الرعاية الصحية والتمريض  مديرية صحة الجيزة مستشفى بولاق الدكرور العام (مجاني)","KA","NX","VR","AA"]
[15423,"مستشفى زايد المركزي (مجاني)","وزارة الصحة و السكان ","قطاع الرعاية الصحية والتمريض  ","مديرية صحة الجيزة ","مستشفى زايد المركزي (مجاني)","ON","الهيئة المصرية للشراء الموحد لصالح   وزارة الصحة و السكان قطاع الرعاية الصحية والتمريض  مديرية صحة الجيزة مستشفى زايد المركزي (مجاني)","HF","QI","YY","TW"]
[15424,"مستشفى صدر الجيزة (مجاني)","وزارة الصحة و السكان ","قطاع الرعاية الصحية والتمريض  ","مديرية صحة الجيزة ","مستشفى صدر الجيزة (مجاني)","QH","الهيئة المصرية للشراء الموحد لصالح   وزارة الصحة و السكان قطاع الرعاية الصحية والتمريض  مديرية صحة الجيزة مستشفى صدر الجيزة (مجاني)","CG","BF","QA","QC"]
[15425,"مستشفى صدر العياط (مجاني)","وزارة الصحة و السكان ","قطاع الرعاية الصحية والتمريض  ","مديرية صحة الجيزة ","مستشفى صدر العياط (مجاني)","WT","الهيئة المصرية للشراء الموحد لصالح   وزارة الصحة و السكان قطاع الرعاية الصحية والتمريض  مديرية صحة الجيزة مستشفى صدر العياط (مجاني)","YR","IL","MZ","VR"]
[15426,"مستشفى مبارك المركزي (مجاني)","وزارة الصحة و السكان ","قطاع الرعاية الصحية والتمريض  ","مديرية صحة الجيزة ","مستشفى مبارك المركزي (مجاني)","DV","الهيئة المصرية للشراء الموحد لصالح   وزارة الصحة و السكان قطاع الرعاية الصحية والتمريض  مديرية صحة الجيزة مستشفى مبارك المركزي (مجاني)","RR","BN","GS","DZ"]
[15427,"مستوصف الصدر والحساسية (مجاني)","وزارة الصحة و السكان ","قطاع الرعاية الصحية والتمريض  ","مديرية صحة الجيزة ","مستوصف الصدر والحساسية (مجاني)","TE","الهيئة المصرية للشراء الموحد لصالح   وزارة الصحة و السكان قطاع الرعاية الصحية والتمريض  مديرية صحة الجيزة مستوصف الصدر والحساسية (مجاني)","OW","VZ","EM","MQ"]
[15428,"مستوصف صدر اطفيح (مجاني)","وزارة الصحة و السكان ","قطاع الرعاية الصحية والتمريض  ","مديرية صحة الجيزة ","مستوصف صدر اطفيح (مجاني)","QU","الهيئة المصرية للشراء الموحد لصالح   وزارة الصحة و السكان قطاع الرعاية الصحية والتمريض  مديرية صحة الجيزة مستوصف صدر اطفيح (مجاني)","HM","UF","UG","AW"]
[15437,"مستشفى الخليفة العام","وزارة الصحة و السكان ","قطاع الرعاية الصحية والتمريض  ","مديرية صحة القاهرة ","مستشفى الخليفة العام","OW","الهيئة المصرية للشراء الموحد لصالح   وزارة الصحة و السكان قطاع الرعاية الصحية والتمريض  مديرية صحة القاهرة مستشفى الخليفة العام","SF","MN","UE","CS"]
[15442,"مستشفى المنيرة العام","وزارة الصحة و السكان ","قطاع الرعاية الصحية والتمريض  ","مديرية صحة القاهرة ","مستشفى المنيرة العام","WG","الهيئة المصرية للشراء الموحد لصالح   وزارة الصحة و السكان قطاع الرعاية الصحية والتمريض  مديرية صحة القاهرة مستشفى المنيرة العام","PV","BL","DZ","NI"]
[15450,"مستشفى عين شمس العام","وزارة الصحة و السكان ","قطاع الرعاية الصحية والتمريض  ","مديرية صحة القاهرة ","مستشفى عين شمس العام","FZ","الهيئة المصرية للشراء الموحد لصالح   وزارة الصحة و السكان قطاع الرعاية الصحية والتمريض  مديرية صحة القاهرة مستشفى عين شمس العام","FR","VW","VJ","LH"]
[15494,"هيئة قناة السويس","هيئة قناة السويس ","LP","GS","VK","LU","الهيئة المصرية للشراء الموحد لصالح   هيئة قناة السويس LPGSVK","WX","AA","YV","CK"]
[15497,"مستشفى الاصلاح الاسلامى","وزارة الصحة و السكان ","المؤسسة العلاجية ","المؤسسة العلاجية _ القاهرة  ","مستشفى الاصلاح الاسلامى","KS","الهيئة المصرية للشراء الموحد لصالح   وزارة الصحة و السكان المؤسسة العلاجية المؤسسة العلاجية _ القاهرة  مستشفى الاصلاح الاسلامى","ON","PT","XR","TV"]
[15498,"مستشفى القبطى القاهره","وزارة الصحة و السكان ","المؤسسة العلاجية ","المؤسسة العلاجية _ القاهرة  ","مستشفى القبطى القاهره","RW","الهيئة المصرية للشراء الموحد لصالح   وزارة الصحة و السكان المؤسسة العلاجية المؤسسة العلاجية _ القاهرة  مستشفى القبطى القاهره","ZG","JZ","UN","HH"]
[15499,"مستشفى مبرة المعادى - المؤسسة العلاجية","وزارة الصحة و السكان ","المؤسسة العلاجية ","المؤسسة العلاجية _ القاهرة  ","مستشفى مبرة المعادى - المؤسسة العلاجية","NA","الهيئة المصرية للشراء الموحد لصالح   وزارة الصحة و السكان المؤسسة العلاجية المؤسسة العلاجية _ القاهرة  مستشفى مبرة المعادى - المؤسسة العلاجية","SY","QQ","RZ","MC"]
[15500,"مستشفى مبره مصر القديمه","وزارة الصحة و السكان ","المؤسسة العلاجية ","المؤسسة العلاجية _ القاهرة  ","مستشفى مبره مصر القديمه","FX","الهيئة المصرية للشراء الموحد لصالح   وزارة الصحة و السكان المؤسسة العلاجية المؤسسة العلاجية _ القاهرة  مستشفى مبره مصر القديمه","TB","LG","YD","XZ"]
[15501,"مستشفى هليوبوليس","وزارة الصحة و السكان ","المؤسسة العلاجية ","المؤسسة العلاجية _ القاهرة  ","مستشفى هليوبوليس","BT","الهيئة المصرية للشراء الموحد لصالح   وزارة الصحة و السكان المؤسسة العلاجية المؤسسة العلاجية _ القاهرة  مستشفى هليوبوليس","IR","YA","UX","VW"]
[15531,"المخزن الإقليمي للمستلزمات - مديرية الشئون الصحية بالمنوفية","وزارة الصحة و السكان ","قطاع الرعاية الصحية والتمريض  ","مديرية صحة المنوفية ","المخزن الإقليمي للمستلزمات - مديرية الشئون الصحية بالمنوفية","KP","الهيئة المصرية للشراء الموحد لصالح   وزارة الصحة و السكان قطاع الرعاية الصحية والتمريض  مديرية صحة المنوفية المخزن الإقليمي للمستلزمات - مديرية الشئون الصحية بالمنوفية","IV","WA","SD","AT"]
[15544,"المخزن الإقليمي لمستلزمات الأسنان - مديرية الشئون الصحية بالمنوفية","وزارة الصحة و السكان ","قطاع الرعاية الصحية والتمريض  ","مديرية صحة المنوفية ","المخزن الإقليمي لمستلزمات الأسنان - مديرية الشئون الصحية بالمنوفية","PM","الهيئة المصرية للشراء الموحد لصالح   وزارة الصحة و السكان قطاع الرعاية الصحية والتمريض  مديرية صحة المنوفية المخزن الإقليمي لمستلزمات الأسنان - مديرية الشئون الصحية بالمنوفية","UH","JN","IU","SF"]
[15616," التامين صحي مستشفى شبرا ","وزارة الصحة و السكان ","هيئة التأمين الصحى  ","هيئة التأمين الصحى _ القاهرة ","التامين صحي مستشفى شبرا","HK","الهيئة المصرية للشراء الموحد لصالح   وزارة الصحة و السكان هيئة التأمين الصحى  هيئة التأمين الصحى _ القاهرة التامين صحي مستشفى شبرا","JY","SE","RD","HR"]
[15617," تامين صحي مستشفى النصر حلوان","وزارة الصحة و السكان ","هيئة التأمين الصحى  ","هيئة التأمين الصحى _ القاهرة ","تامين صحي مستشفى النصر حلوان","CW","الهيئة المصرية للشراء الموحد لصالح   وزارة الصحة و السكان هيئة التأمين الصحى  هيئة التأمين الصحى _ القاهرة تامين صحي مستشفى النصر حلوان","TJ","LM","BU","LK"]
[15619,"إدارة التموين الطبى - فرع الغربية","وزارة الصحة و السكان ","هيئة التأمين الصحى  ","هيئة التأمين الصحى _ فرع الغربيّة  ","إدارة التموين الطبى - فرع الغربية","AO","الهيئة المصرية للشراء الموحد لصالح   وزارة الصحة و السكان هيئة التأمين الصحى  هيئة التأمين الصحى _ فرع الغربيّة  إدارة التموين الطبى - فرع الغربية","LG","BC","DS","NP"]
[15622,"التأمين الصحى فرع الجيزة","وزارة الصحة و السكان ","هيئة التأمين الصحى  ","هيئة التأمين الصحى _ الجيزة ","التأمين الصحى فرع الجيزة","ZL","الهيئة المصرية للشراء الموحد لصالح   وزارة الصحة و السكان هيئة التأمين الصحى  هيئة التأمين الصحى _ الجيزة التأمين الصحى فرع الجيزة","KX","KE","YU","MS"]
[15625,"مستشفى البعوث","وزارة الصحة و السكان ","هيئة التأمين الصحى  ","هيئة التأمين الصحى _ القاهرة ","مستشفى البعوث","XI","الهيئة المصرية للشراء الموحد لصالح   وزارة الصحة و السكان هيئة التأمين الصحى  هيئة التأمين الصحى _ القاهرة مستشفى البعوث","HN","IY","LQ","CY"]
[15626,"التأمين الصحي مستشفى أطفال مصر ابوالريش","وزارة الصحة و السكان ","هيئة التأمين الصحى  ","هيئة التأمين الصحى _ القاهرة ","التأمين الصحي مستشفى أطفال مصر ابوالريش","QH","الهيئة المصرية للشراء الموحد لصالح   وزارة الصحة و السكان هيئة التأمين الصحى  هيئة التأمين الصحى _ القاهرة التأمين الصحي مستشفى أطفال مصر ابوالريش","MF","QR","ZW","ML"]
[15627,"التأمين الصحي مستشفى ابوقير التخصصى","وزارة الصحة و السكان ","هيئة التأمين الصحى  ","هيئة التأمين الصحى _ الاسكندرية ","التأمين الصحي مستشفى ابوقير التخصصى","BI","الهيئة المصرية للشراء الموحد لصالح   وزارة الصحة و السكان هيئة التأمين الصحى  هيئة التأمين الصحى _ الاسكندرية التأمين الصحي مستشفى ابوقير التخصصى","LP","UQ","FO","HX"]
[15628,"التأمين الصحي مستشفى الطلبه سبورتنج","وزارة الصحة و السكان ","هيئة التأمين الصحى  ","هيئة التأمين الصحى _ الاسكندرية ","التأمين الصحي مستشفى الطلبه سبورتنج","TG","الهيئة المصرية للشراء الموحد لصالح   وزارة الصحة و السكان هيئة التأمين الصحى  هيئة التأمين الصحى _ الاسكندرية التأمين الصحي مستشفى الطلبه سبورتنج","LR","UG","RK","DF"]
[15629,"التأمين الصحى مستشفي المقطم","وزارة الصحة و السكان ","هيئة التأمين الصحى  ","هيئة التأمين الصحى _ القاهرة ","التأمين الصحى مستشفي المقطم","HR","الهيئة المصرية للشراء الموحد لصالح   وزارة الصحة و السكان هيئة التأمين الصحى  هيئة التأمين الصحى _ القاهرة التأمين الصحى مستشفي المقطم","CG","PW","OS","XQ"]
[15630,"التأمين الصحي مستشفى جمال عبد الناصر","وزارة الصحة و السكان ","هيئة التأمين الصحى  ","هيئة التأمين الصحى _ الاسكندرية ","التأمين الصحي مستشفى جمال عبد الناصر","TV","الهيئة المصرية للشراء الموحد لصالح   وزارة الصحة و السكان هيئة التأمين الصحى  هيئة التأمين الصحى _ الاسكندرية التأمين الصحي مستشفى جمال عبد الناصر","OZ","PL","FV","WH"]
[15631,"التأمين الصحي مستشفى كرموز العمال","وزارة الصحة و السكان ","هيئة التأمين الصحى  ","هيئة التأمين الصحى _ الاسكندرية ","التأمين الصحي مستشفى كرموز العمال","TT","الهيئة المصرية للشراء الموحد لصالح   وزارة الصحة و السكان هيئة التأمين الصحى  هيئة التأمين الصحى _ الاسكندرية التأمين الصحي مستشفى كرموز العمال","UT","YH","MZ","CP"]
[15634,"التامين صحي فرع سوهاج","وزارة الصحة و السكان ","هيئة التأمين الصحى  ","هيئة التأمين الصحى _ سوهاج  ","التامين صحي فرع سوهاج","IQ","الهيئة المصرية للشراء الموحد لصالح   وزارة الصحة و السكان هيئة التأمين الصحى  هيئة التأمين الصحى _ سوهاج  التامين صحي فرع سوهاج","WY","XN","SD","CI"]
[15635,"التامين صحي مستشفى صيدناوي","وزارة الصحة و السكان ","هيئة التأمين الصحى  ","هيئة التأمين الصحى _ القاهرة ","التامين صحي مستشفى صيدناوي","LF","الهيئة المصرية للشراء الموحد لصالح   وزارة الصحة و السكان هيئة التأمين الصحى  هيئة التأمين الصحى _ القاهرة التامين صحي مستشفى صيدناوي","YX","VL","UR","TZ"]
[15639,"الهيئة العامة للتأمين الصحى فرع المنوفية","وزارة الصحة و السكان ","هيئة التأمين الصحى  ","هيئة التأمين الصحى _ المنوفيّة ","الهيئة العامة للتأمين الصحى فرع المنوفية","TJ","الهيئة المصرية للشراء الموحد لصالح   وزارة الصحة و السكان هيئة التأمين الصحى  هيئة التأمين الصحى _ المنوفيّة الهيئة العامة للتأمين الصحى فرع المنوفية","QY","EI","XW","WK"]
[15642,"عيادات فرع شمال شرق الدلتا","وزارة الصحة و السكان ","هيئة التأمين الصحى  ","هيئة التأمين الصحى _شمال شرق الدلتا  ","عيادات فرع شمال شرق الدلتا","RS","الهيئة المصرية للشراء الموحد لصالح   وزارة الصحة و السكان هيئة التأمين الصحى  هيئة التأمين الصحى _شمال شرق الدلتا  عيادات فرع شمال شرق الدلتا","IB","CD","KK","AY"]
[15643,"الهيئه العامه للتامين الصحى    فرع دمياط","وزارة الصحة و السكان ","هيئة التأمين الصحى  ","هيئة التأمين الصحى _ دمياط ","الهيئه العامه للتامين الصحى    فرع دمياط","QC","الهيئة المصرية للشراء الموحد لصالح   وزارة الصحة و السكان هيئة التأمين الصحى  هيئة التأمين الصحى _ دمياط الهيئه العامه للتامين الصحى    فرع دمياط","MB","OB","QF","QL"]
[15647,"فرع كفرالشيخ للتامين الصحي","وزارة الصحة و السكان ","هيئة التأمين الصحى  ","هيئة التأمين الصحى _ كفر الشيخ  ","فرع كفرالشيخ للتامين الصحي","OM","الهيئة المصرية للشراء الموحد لصالح   وزارة الصحة و السكان هيئة التأمين الصحى  هيئة التأمين الصحى _ كفر الشيخ  فرع كفرالشيخ للتامين الصحي","WR","NG","MW","OH"]
[15648,"فرع وسط الصعيد للتامين الصحى ( أسيوط )","وزارة الصحة و السكان ","هيئة التأمين الصحى  ","هيئة التأمين الصحى _ اسيوط  ","فرع وسط الصعيد للتامين الصحى ( أسيوط )","MH","الهيئة المصرية للشراء الموحد لصالح   وزارة الصحة و السكان هيئة التأمين الصحى  هيئة التأمين الصحى _ اسيوط  فرع وسط الصعيد للتامين الصحى ( أسيوط )","OQ","GU","WO","WN"]
[15649,"للتأمين الصحي المجمع الطبي - فرع جنوب الصعيد","وزارة الصحة و السكان ","هيئة التأمين الصحى  ","هيئة التأمين الصحى _ قِنا  ","للتأمين الصحي المجمع الطبي - فرع جنوب الصعيد","FG","الهيئة المصرية للشراء الموحد لصالح   وزارة الصحة و السكان هيئة التأمين الصحى  هيئة التأمين الصحى _ قِنا  للتأمين الصحي المجمع الطبي - فرع جنوب الصعيد","GR","EK","KT","JO"]
[15650,"للتأمين الصحي المنطقة الثانية حلوان","وزارة الصحة و السكان ","هيئة التأمين الصحى  ","هيئة التأمين الصحى _ القاهرة ","للتأمين الصحي المنطقة الثانية حلوان","UK","الهيئة المصرية للشراء الموحد لصالح   وزارة الصحة و السكان هيئة التأمين الصحى  هيئة التأمين الصحى _ القاهرة للتأمين الصحي المنطقة الثانية حلوان","NG","CG","XR","IL"]
[15651,"للتأمين الصحي المنطقة الخامسة","وزارة الصحة و السكان ","هيئة التأمين الصحى  ","هيئة التأمين الصحى _ القاهرة ","للتأمين الصحي المنطقة الخامسة","YU","الهيئة المصرية للشراء الموحد لصالح   وزارة الصحة و السكان هيئة التأمين الصحى  هيئة التأمين الصحى _ القاهرة للتأمين الصحي المنطقة الخامسة","MY","GP","TV","TL"]
[15657,"مستشفى الهلال للتأمين الصحى سوهاج","وزارة الصحة و السكان ","هيئة التأمين الصحى  ","هيئة التأمين الصحى _ سوهاج  ","مستشفى الهلال للتأمين الصحى سوهاج","TW","الهيئة المصرية للشراء الموحد لصالح   وزارة الصحة و السكان هيئة التأمين الصحى  هيئة التأمين الصحى _ سوهاج  مستشفى الهلال للتأمين الصحى سوهاج","EM","AM","UD","JD"]
[15658,"مستشفى سندوب و ميت غمر للتامين الصحى","وزارة الصحة و السكان ","هيئة التأمين الصحى  ","هيئة التأمين الصحى _شمال شرق الدلتا  ","مستشفى سندوب و ميت غمر للتامين الصحى","YA","الهيئة المصرية للشراء الموحد لصالح   وزارة الصحة و السكان هيئة التأمين الصحى  هيئة التأمين الصحى _شمال شرق الدلتا  مستشفى سندوب و ميت غمر للتامين الصحى","UB","YD","ZO","CH"]

{"sheet":"الاسعار والاصناف الحكومى","index":2,"n_rows":9,"n_cols":3,"rows_kept":9,"cut":false,"hidden":false,"merged":[]}
[1,2,3]
["كود سعر المورد","اسم البند","السعر غير شامل الضريبة"]
[55700,"كانيولا مقاسات 14",2]
[55703,"كانيولا مقاسات 16",2]
[55706,"كانيولا مقاسات 18",1.75]
[55708,"كانيولا مقاسات 20",1.75]
[55709,"كانيولا مقاسات 22",1.75]
[55711,"كانيولا مقاسات 24",2.25]
[55713,"كانيولا مقاسات 26",2.25]

{"sheet":"Bayan","index":3,"n_rows":6,"n_cols":9,"rows_kept":6,"cut":false,"hidden":false,"merged":[]}
["الاجمالى","سعر الوحدة","الكمية","الصنف","التاريـــخ ","اسم العميـــــل ","العنوان ","كود العميل","رقم امر التوريد"]
[9,2.25,4,"كانيولا مقاسات 26","2020-09-23","الهيئة المصرية للشراء الموحد لصالح   وزارة الصحة و السكان  SVYKIH","CM",10141,3410]
[3.5,1.75,2,"كانيولا مقاسات 24"]
[9,2.25,4,"كانيولا مقاسات 26","2020-09-23","الهيئة المصرية للشراء الموحد لصالح   وزارة الصحة و السكان  SVYKIH","CM",10141,3410]
[3.5,1.75,2,"كانيولا مقاسات 24"]
[22.5,2.25,10,"كانيولا مقاسات 26"]